fUST/lending_fUST_20250615
["ID","MTS","AMOUNT","RATE_DAILY","PERIOD"]
[365828616,1749942642447,-460.0,0.00022465,4]
[365828617,1749942642457,-460.0,0.00022465,4]
[365828618,1749942642466,-460.0,0.00022465,4]
[365828619,1749942642475,-460.0,0.00022465,4]
[365828620,1749942642484,-1454.97,0.00022465,4]
[365828621,1749942642493,-340.0,0.00022465,4]
[365828622,1749942642505,-1630.71,0.00022465,4]
[365828624,1749942642516,-400.0,0.00022465,4]
[365828626,1749942642525,-536.87,0.00022465,4]
[365828628,1749942642535,-639.76,0.00022465,4]
[365828630,1749942642545,-4036.84,0.00022465,4]
[365828631,1749942642555,-460.0,0.00022465,4]
[365828633,1749942642564,-580.06,0.00022465,4]
[365828635,1749942642574,-460.0,0.00022465,4]
[365828637,1749942642584,-460.0,0.00022465,4]
[365828639,1749942642593,-460.0,0.00022465,4]
[365828641,1749942642603,-376.07208946,0.00022465,4]
[365828643,1749942642612,-504.16613762,0.00022465,4]
[365828644,1749942642621,-460.0,0.00022465,4]
[365828646,1749942642631,-1703.45,0.00022465,4]
[365828648,1749942642640,-670.68,0.00022465,4]
[365828650,1749942642650,-536.34,0.00022465,4]
[365828652,1749942642659,-171.40210787,0.00022465,4]
[365828654,1749942642670,-554.82,0.00022465,4]
[365828656,1749942642680,-500.0,0.00022465,4]
[365828658,1749942642689,-460.0,0.00022465,4]
[365828660,1749942642699,-619.93,0.00022465,4]
[365828662,1749942642710,-710.88,0.00022465,4]
[365828664,1749942642720,-380.0,0.00022465,4]
[365828665,1749942642730,-190.0,0.00022465,4]
[365828666,1749942642739,-921.63,0.00022465,4]
[365828667,1749942642749,-1084.94,0.00022465,4]
[365828668,1749942642758,-460.0,0.00022465,4]
[365828669,1749942642767,-340.44,0.00022465,4]
[365828670,1749942642776,-460.0,0.00022465,4]
[365828671,1749942642786,-460.0,0.00022465,4]
[365828673,1749942642796,-512.06,0.00022465,4]
[365828674,1749942642805,-460.0,0.00022465,4]
[365828676,1749942642814,-460.0,0.00022465,4]
[365828678,1749942642824,-460.0,0.00022465,4]
[365828680,1749942642833,-1131.02,0.00022465,4]
[365828681,1749942642843,-711.64,0.00022465,4]
[365828684,1749942642853,-460.0,0.00022465,4]
[365828687,1749942642862,-1108.04,0.00022465,4]
[365828690,1749942642871,-460.0,0.00022465,4]
[365828693,1749942642881,-460.0,0.00022465,4]
[365828695,1749942642890,-1002.91,0.00022465,4]
[365828696,1749942642899,-460.0,0.00022465,4]
[365828698,1749942642908,-857.45,0.00022465,4]
[365828700,1749942642918,-461.60400265,0.00022465,4]
[365828702,1749942642927,-3300.29,0.00022465,4]
[365828703,1749942642936,-716.31,0.00022465,4]
[365828705,1749942642945,-460.0,0.00022465,4]
[365828707,1749942642954,-2387.16,0.00022465,4]
[365828709,1749942642963,-3336.2,0.00022465,4]
[365828711,1749942642973,-460.0,0.00022465,4]
[365828713,1749942642982,-340.0,0.00022465,4]
[365828715,1749942642992,-460.0,0.00022465,4]
[365828716,1749942643001,-1414.65,0.00022465,4]
[365828718,1749942643011,-460.0,0.00022465,4]
[365828720,1749942643020,-568.91,0.00022465,4]
[365828722,1749942643030,-460.0,0.00022465,4]
[365828724,1749942643039,-460.0,0.00022465,4]
[365828726,1749942643049,-3965.51,0.00022465,4]
[365828728,1749942643058,-4101.37,0.00022465,4]
[365828730,1749942643068,-460.0,0.00022465,4]
[365828732,1749942643077,-4842.36,0.00022465,4]
[365828734,1749942643087,-910.23,0.00022465,4]
[365828735,1749942643096,-517.58,0.00022465,2]
[365828737,1749942643106,-1001.53,0.00022465,4]
[365828739,1749942643115,-227.71046366,0.00022465,4]
[365828741,1749942643124,-460.0,0.00022465,4]
[365828743,1749942643133,-1022.41,0.00022465,4]
[365828745,1749942643143,-400.0,0.00022465,4]
[365828747,1749942643152,-601.64,0.00022465,4]
[365828749,1749942643162,-460.0,0.00022465,4]
[365828751,1749942643172,-460.0,0.00022465,4]
[365828753,1749942643183,-460.0,0.00022465,4]
[365828755,1749942643194,-1836.93,0.00022465,4]
[365828756,1749942643204,-539.89,0.00022465,4]
[365828758,1749942643214,-499.96,0.00022465,4]
[365828771,1749942643223,-460.0,0.00022465,4]
[365828772,1749942643347,-238.709724,0.00022465,4]
[365828773,1749942643357,-3168.7,0.00022465,4]
[365828774,1749942643366,-460.0,0.00022465,4]
[365828775,1749942643376,-1522.71,0.00022465,4]
[365828776,1749942643385,-672.89,0.00022465,4]
[365828777,1749942643395,-380.0,0.00022465,4]
[365828778,1749942643404,-302.10572513,0.00022465,4]
[365828779,1749942643413,-460.0,0.00022465,4]
[365828780,1749942643423,-460.0,0.00022465,4]
[365828781,1749942643432,-460.0,0.00022465,4]
[365828782,1749942643441,-1355.96,0.00022465,4]
[365828783,1749942643451,-460.0,0.00022465,4]
[365828784,1749942643460,-460.0,0.00022465,4]
[365828785,1749942643470,-460.0,0.00022465,4]
[365828786,1749942643479,-1000.0,0.00022521,2]
[365828787,1749942643488,-194.76318022,0.00022521,2]
[365828788,1749942643498,-500.0,0.00022521,2]
[365828789,1749942643511,-339.13023798,0.00022521,2]
[365828790,1749942643521,-1575.01399744,0.0002259,7]
[365828791,1749942643531,-1575.01399744,0.00022728,7]
[365828792,1749942643540,-420.0,0.00022739,4]
[365828793,1749942643552,-320.0,0.00022739,4]
[365828794,1749942643561,-279.06232774,0.00022739,4]
[365828795,1749942643572,-460.0,0.00022739,4]
[365828796,1749942643582,-460.0,0.00022739,4]
[365828797,1749942643595,-573.98,0.00022739,4]
[365828798,1749942643605,-460.0,0.00022739,4]
[365828799,1749942643615,-460.0,0.00022739,4]
[365828800,1749942643625,-309.96880569,0.00022739,4]
[365828801,1749942643634,-460.0,0.00022739,4]
[365828802,1749942643644,-460.0,0.00022739,4]
[365828803,1749942643654,-460.0,0.00022739,4]
[365828804,1749942643664,-460.0,0.00022739,4]
[365828805,1749942643676,-460.0,0.00022739,4]
[365828806,1749942643685,-479.340788,0.00022739,4]
[365828807,1749942643695,-1136.8,0.00022739,4]
[365828808,1749942643705,-460.0,0.00022739,4]
[365828809,1749942643714,-460.0,0.00022739,4]
[365828810,1749942643724,-460.0,0.00022739,4]
[365828811,1749942643733,-460.0,0.00022739,4]
[365828812,1749942643743,-678.97,0.00022739,4]
[365828813,1749942643753,-430.0,0.00022739,4]
[365828814,1749942643762,-475.35,0.00022739,4]
[365828815,1749942643772,-460.0,0.00022739,4]
[365828816,1749942643782,-547.98,0.00022739,4]
[365828817,1749942643792,-460.0,0.00022739,4]
[365828818,1749942643802,-590.0,0.00022739,4]
[365828819,1749942643811,-460.0,0.00022739,4]
[365828820,1749942643820,-230.0,0.00022739,4]
[365828821,1749942643830,-460.0,0.00022739,4]
[365828822,1749942643842,-1454.97,0.00022739,4]
[365828823,1749942643851,-1630.71,0.00022739,4]
[365828824,1749942643860,-536.87,0.00022739,4]
[365828825,1749942643870,-639.76,0.00022739,4]
[365828826,1749942643879,-4036.84,0.00022739,4]
[365828827,1749942643889,-410.0,0.00022739,4]
[365828828,1749942643899,-580.06,0.00022739,4]
[365828829,1749942643908,-460.0,0.00022739,4]
[365828830,1749942643917,-380.0,0.00022739,4]
[365828831,1749942643926,-460.0,0.00022739,4]
[365828832,1749942643936,-460.0,0.00022739,4]
[365828833,1749942643945,-1703.45,0.00022739,4]
[365828834,1749942643955,-670.68,0.00022739,4]
[365828835,1749942643964,-536.34,0.00022739,4]
[365828836,1749942643973,-554.82,0.00022739,4]
[365828837,1749942643983,-500.0,0.00022739,4]
[365828838,1749942643992,-350.0,0.00022739,4]
[365828839,1749942644002,-619.93,0.00022739,4]
[365828840,1749942644011,-710.88,0.00022739,4]
[365828841,1749942644020,-921.63,0.00022739,4]
[365828842,1749942644030,-1084.94,0.00022739,4]
[365828843,1749942644039,-460.0,0.00022739,4]
[365828844,1749942644050,-310.0,0.00022739,4]
[365828845,1749942644059,-460.0,0.00022739,4]
[365828846,1749942644069,-512.06,0.00022739,4]
[365828847,1749942644078,-460.0,0.00022739,4]
[365828848,1749942644089,-460.0,0.00022739,4]
[365828849,1749942644099,-460.0,0.00022739,4]
[365828850,1749942644108,-1131.02,0.00022739,4]
[365828851,1749942644117,-711.64,0.00022739,4]
[365828852,1749942644127,-460.0,0.00022739,4]
[365828853,1749942644136,-1108.04,0.00022739,4]
[365828854,1749942644146,-460.0,0.00022739,4]
[365828855,1749942644155,-460.0,0.00022739,4]
[365828856,1749942644165,-1002.91,0.00022739,4]
[365828857,1749942644175,-460.0,0.00022739,4]
[365828858,1749942644184,-857.45,0.00022739,4]
[365828859,1749942644193,-716.31,0.00022739,4]
[365828860,1749942644203,-3300.29,0.00022739,4]
[365828861,1749942644213,-460.0,0.00022739,4]
[365828862,1749942644223,-2387.16,0.00022739,4]
[365828863,1749942644232,-3336.2,0.00022739,4]
[365828864,1749942644242,-460.0,0.00022739,4]
[365828865,1749942644251,-460.0,0.00022739,4]
[365828866,1749942644261,-1414.65,0.00022739,4]
[365828867,1749942644270,-460.0,0.00022739,4]
[365828868,1749942644279,-568.91,0.00022739,4]
[365828869,1749942644288,-370.0,0.00022739,4]
[365828870,1749942644298,-460.0,0.00022739,4]
[365828871,1749942644307,-3965.51,0.00022739,4]
[365828872,1749942644316,-4101.37,0.00022739,4]
[365828873,1749942644326,-460.0,0.00022739,4]
[365828874,1749942644335,-4842.36,0.00022739,4]
[365828875,1749942644346,-910.23,0.00022739,4]
[365828876,1749942644356,-517.58,0.00022739,2]
[365828877,1749942644366,-1001.53,0.00022739,4]
[365828878,1749942644375,-460.0,0.00022739,4]
[365828879,1749942644384,-1022.41,0.00022739,4]
[365828880,1749942644394,-601.64,0.00022739,4]
[365828881,1749942644403,-460.0,0.00022739,4]
[365828882,1749942644413,-460.0,0.00022739,4]
[365828883,1749942644422,-460.0,0.00022739,4]
[365828884,1749942644432,-1836.93,0.00022739,4]
[365828885,1749942644441,-539.89,0.00022739,4]
[365828886,1749942644451,-499.96,0.00022739,4]
[365828887,1749942644461,-460.0,0.00022739,4]
[365828888,1749942644470,-3168.7,0.00022739,4]
[365828889,1749942644479,-460.0,0.00022739,4]
[365828890,1749942644489,-1522.71,0.00022739,4]
[365828891,1749942644498,-672.89,0.00022739,4]
[365828892,1749942644513,-551.41,0.00022739,4]
[365828893,1749942644522,-280.0,0.00022739,4]
[365828894,1749942644532,-352.27280839,0.00022739,4]
[365828895,1749942644542,-1355.96,0.00022739,4]
[365828896,1749942644554,-460.0,0.00022739,4]
[365828897,1749942644564,-460.0,0.00022739,4]
[365828898,1749942644573,-460.0,0.00022739,4]
[365828899,1749942644585,-156.587,0.00022785,2]
[365828900,1749942644597,-226.0,0.00022796,2]
[365828901,1749942644607,-207.4,0.00022799,2]
[365828902,1749942644616,-151.0,0.00022799,2]
[365828903,1749942644626,-151.0,0.00022799,2]
[365828904,1749942644636,-151.0,0.00022799,2]
[365828905,1749942644645,-1688.0,0.00022799,2]
[365828906,1749942644655,-1000.0,0.00022799,2]
[365828907,1749942644664,-1000.0,0.00022799,2]
[365828908,1749942644674,-1000.0,0.00022799,2]
[365828909,1749942644683,-1000.0,0.00022799,2]
[365828910,1749942644692,-5000.0,0.00022799,2]
[365828911,1749942644702,-151.0,0.00022799,2]
[365828912,1749942644712,-500.0,0.00022799,2]
[365828913,1749942644721,-1000.0,0.00022799,2]
[365828914,1749942644732,-151.0,0.00022799,2]
[365828915,1749942644741,-500.0,0.00022799,2]
[365828916,1749942644751,-1000.0,0.00022799,2]
[365828917,1749942644760,-151.0,0.00022799,2]
[365828918,1749942644770,-1000.0,0.00022799,2]
[365828919,1749942644779,-500.0,0.00022799,2]
[365828920,1749942644788,-151.0,0.00022799,2]
[365828921,1749942644798,-500.0,0.00022799,2]
[365828922,1749942644807,-500.0,0.00022799,2]
[365828923,1749942644816,-226.76390347,0.00022799,2]
[365828924,1749942644826,-500.0,0.00022799,2]
[365828925,1749942644835,-500.0,0.00022799,2]
[365828926,1749942644846,-500.0,0.00022799,2]
[365828927,1749942644855,-500.0,0.00022799,2]
[365828928,1749942644865,-500.0,0.00022799,2]
[365828929,1749942644875,-500.0,0.00022799,2]
[365828930,1749942644884,-500.0,0.00022799,2]
[365828931,1749942644894,-500.0,0.00022799,2]
[365828932,1749942644904,-500.0,0.00022799,2]
[365828933,1749942644915,-500.0,0.00022799,2]
[365828934,1749942644924,-500.0,0.00022799,2]
[365828935,1749942644934,-300.0,0.00022799,2]
[365828936,1749942644944,-204.71631625,0.00022799,2]
[365828937,1749942644953,-160.0,0.00022806,2]
[365828938,1749942644964,-835.41710878,0.00022806,2]
[365828939,1749942644974,-160.0,0.00022806,2]
[365828940,1749942644984,-160.0,0.00022806,2]
[365828941,1749942644994,-229.82479369,0.00022806,2]
[365828942,1749942645004,-213.28201367,0.00022806,2]
[365828943,1749942645014,-845.10789306,0.00022806,2]
[365828944,1749942645024,-424.40141186,0.00022806,2]
[365828945,1749942645033,-160.0,0.00022806,2]
[365828946,1749942645044,-1750.456,0.00022854,2]
[365828947,1749942645053,-1575.01399744,0.00022866,8]
[365828948,1749942645063,-362.72917899,0.00022897,2]
[365828949,1749942645072,-157.60310324,0.00022909,2]
[365828950,1749942645082,-428.57648092,0.00022967,2]
[365828951,1749942645091,-1575.01399744,0.00023003,8]
[365828952,1749942645100,-460.0,0.00023013,4]
[365828953,1749942645110,-553.31062181,0.00023013,4]
[365828954,1749942645119,-573.98,0.00023013,4]
[365828955,1749942645128,-540.0,0.00023013,4]
[365828956,1749942645138,-460.0,0.00023013,4]
[365828957,1749942645147,-460.0,0.00023013,4]
[365828958,1749942645157,-460.0,0.00023013,4]
[365828959,1749942645167,-460.0,0.00023013,4]
[365828960,1749942645177,-460.0,0.00023013,4]
[365828961,1749942645186,-460.0,0.00023013,4]
[365828962,1749942645196,-1136.8,0.00023013,4]
[365828963,1749942645205,-460.0,0.00023013,4]
[365828964,1749942645214,-202.58128461,0.00023013,4]
[365828965,1749942645223,-289.70908746,0.00023013,4]
[365828966,1749942645232,-380.86628721,0.00023013,4]
[365828967,1749942645242,-678.97,0.00023013,4]
[365828968,1749942645253,-475.35,0.00023013,4]
[365828969,1749942645262,-460.0,0.00023013,4]
[365828970,1749942645271,-547.98,0.00023013,4]
[365828971,1749942645281,-311.35606081,0.00023013,4]
[365828972,1749942645290,-460.0,0.00023013,4]
[365828973,1749942645299,-460.0,0.00023013,4]
[365828974,1749942645311,-1454.97,0.00023013,4]
[365828975,1749942645320,-1630.71,0.00023013,4]
[365828976,1749942645331,-536.87,0.00023013,4]
[365828977,1749942645340,-639.76,0.00023013,4]
[365828978,1749942645349,-4036.84,0.00023013,4]
[365828979,1749942645358,-580.06,0.00023013,4]
[365828980,1749942645368,-460.0,0.00023013,4]
[365828981,1749942645377,-460.0,0.00023013,4]
[365828982,1749942645386,-1703.45,0.00023013,4]
[365828983,1749942645395,-670.68,0.00023013,4]
[365828984,1749942645404,-536.34,0.00023013,4]
[365828985,1749942645413,-554.82,0.00023013,4]
[365828986,1749942645422,-195.04187286,0.00023013,4]
[365828987,1749942645431,-619.93,0.00023013,4]
[365828988,1749942645440,-710.88,0.00023013,4]
[365828989,1749942645449,-921.63,0.00023013,4]
[365828990,1749942645459,-1084.94,0.00023013,4]
[365828991,1749942645468,-460.0,0.00023013,4]
[365828992,1749942645478,-460.0,0.00023013,4]
[365828993,1749942645487,-512.06,0.00023013,4]
[365828994,1749942645497,-190.0,0.00023013,4]
[365828996,1749942645509,-460.0,0.00023013,4]
[365828997,1749942645519,-1131.02,0.00023013,4]
[365828999,1749942645529,-711.64,0.00023013,4]
[365829001,1749942645539,-460.0,0.00023013,4]
[365829003,1749942645549,-1108.04,0.00023013,4]
[365829004,1749942645559,-460.0,0.00023013,4]
[365829006,1749942645568,-460.0,0.00023013,4]
[365829007,1749942645577,-1002.91,0.00023013,4]
[365829008,1749942645587,-460.0,0.00023013,4]
[365829009,1749942645597,-857.45,0.00023013,4]
[365829010,1749942645607,-716.31,0.00023013,4]
[365829011,1749942645617,-3300.29,0.00023013,4]
[365829012,1749942645626,-460.0,0.00023013,4]
[365829013,1749942645635,-2387.16,0.00023013,4]
[365829014,1749942645644,-3336.2,0.00023013,4]
[365829015,1749942645653,-460.0,0.00023013,4]
[365829016,1749942645663,-460.0,0.00023013,4]
[365829017,1749942645673,-1414.65,0.00023013,4]
[365829018,1749942645682,-460.0,0.00023013,4]
[365829019,1749942645791,-568.91,0.00023013,4]
[365829020,1749942645801,-460.0,0.00023013,4]
[365829021,1749942645810,-3965.51,0.00023013,4]
[365829022,1749942645820,-4101.37,0.00023013,4]
[365829023,1749942645829,-460.0,0.00023013,4]
[365829024,1749942645838,-4842.36,0.00023013,4]
[365829025,1749942645848,-910.23,0.00023013,4]
[365829026,1749942645857,-517.58,0.00023013,2]
[365829027,1749942645866,-1001.53,0.00023013,4]
[365829028,1749942645876,-460.0,0.00023013,4]
[365829029,1749942645886,-1022.41,0.00023013,4]
[365829030,1749942645895,-601.64,0.00023013,4]
[365829031,1749942645905,-460.0,0.00023013,4]
[365829032,1749942645914,-460.0,0.00023013,4]
[365829033,1749942645923,-1836.93,0.00023013,4]
[365829034,1749942645932,-539.89,0.00023013,4]
[365829035,1749942645942,-499.96,0.00023013,4]
[365829036,1749942645951,-460.0,0.00023013,4]
[365829037,1749942645960,-1522.71,0.00023013,4]
[365829038,1749942645970,-460.0,0.00023013,4]
[365829039,1749942645979,-672.89,0.00023013,4]
[365829040,1749942645989,-3168.7,0.00023013,4]
[365829041,1749942645998,-1355.96,0.00023013,4]
[365829042,1749942646008,-460.0,0.00023013,4]
[365829043,1749942646018,-460.0,0.00023013,4]
[365829044,1749942646028,-460.0,0.00023013,4]
[365829045,1749942646037,-500.0,0.00023033,2]
[365829046,1749942646046,-500.0,0.00023038,2]
[365829047,1749942646055,-500.0,0.00023038,2]
[365829048,1749942646064,-500.0,0.00023038,2]
[365829049,1749942646073,-500.0,0.00023038,2]
[365829050,1749942646083,-500.0,0.00023038,2]
[365829051,1749942646092,-500.0,0.00023038,2]
[365829052,1749942646102,-500.0,0.00023038,2]
[365829054,1749942646111,-500.0,0.00023038,2]
[365829055,1749942646120,-502.85157421,0.00023038,2]
[365829056,1749942646130,-500.0,0.00023038,2]
[365829057,1749942646139,-376.21865756,0.00023038,2]
[365829058,1749942646148,-500.0,0.00023038,2]
[365829059,1749942646157,-500.0,0.00023038,2]
[365829060,1749942646167,-500.0,0.00023038,2]
[365829061,1749942646176,-355.02028707,0.00023038,2]
[365829062,1749942646185,-500.0,0.00023038,2]
[365829063,1749942646195,-500.0,0.00023038,2]
[365829064,1749942646204,-600.0,0.0002304,2]
[365829065,1749942646213,-500.0,0.0002304,2]
[365829066,1749942646223,-500.0,0.0002304,2]
[365829067,1749942646232,-500.0,0.00023042,2]
[365829068,1749942646241,-500.0,0.00023042,2]
[365829069,1749942646251,-258.71313684,0.00023045,2]
[365829070,1749942646260,-500.0,0.0002305,2]
[365829071,1749942646269,-500.0,0.00023055,2]
[365829072,1749942646279,-420.33161541,0.00023058,2]
[365829073,1749942646288,-500.0,0.00023058,2]
[365829074,1749942646297,-600.0,0.00023058,2]
[365829075,1749942646307,-500.0,0.00023058,2]
[365829076,1749942646316,-500.0,0.00023058,2]
[365829077,1749942646325,-500.0,0.00023058,2]
[365829078,1749942646335,-500.0,0.00023058,2]
[365829079,1749942646345,-500.0,0.00023058,2]
[365829080,1749942646355,-500.0,0.00023058,2]
[365829081,1749942646364,-500.0,0.00023058,2]
[365829082,1749942646377,-500.0,0.00023058,2]
[365829083,1749942646386,-500.0,0.00023058,2]
[365829084,1749942646395,-500.0,0.00023058,2]
[365829085,1749942646405,-500.0,0.00023058,2]
[365829086,1749942646415,-500.0,0.00023058,2]
[365829087,1749942646424,-500.0,0.00023058,2]
[365829088,1749942646433,-502.36935798,0.00023058,2]
[365829089,1749942646443,-500.0,0.00023058,2]
[365829090,1749942646453,-730.5525136,0.00023068,2]
[365829091,1749942646462,-1000.0,0.00023068,2]
[365829092,1749942646471,-500.0,0.00023093,2]
[365829093,1749942646482,-1575.01399744,0.00023141,8]
[365829094,1749942646492,-206.1849086,0.00023151,2]
[365829095,1749942646504,-159.41069738,0.00023151,2]
[365829096,1749942646516,-159.41069738,0.00023151,2]
[365829097,1749942646527,-428.57648092,0.00023158,2]
[365829098,1749942646536,-226.0,0.0002316,2]
[365829099,1749942646546,-500.0,0.00023163,2]
[365829100,1749942646556,-2566.60027673,0.00023215,2]
[365829101,1749942646565,-500.0,0.0002322,2]
[365829102,1749942646574,-500.0,0.0002325,2]
[365829103,1749942646585,-500.0,0.0002325,2]
[365829104,1749942646597,-500.0,0.0002325,2]
[365829105,1749942646606,-500.0,0.0002325,2]
[365829106,1749942646615,-501.88713235,0.0002325,2]
[365829107,1749942646624,-613.4854085,0.0002325,2]
[365829108,1749942646634,-500.0,0.0002325,2]
[365829109,1749942646644,-226.0,0.00023264,2]
[365829110,1749942646654,-1575.01399744,0.00023279,8]
[365829111,1749942646663,-168.0,0.0002328,2]
[365829112,1749942646674,-600.0,0.0002328,2]
[365829113,1749942646683,-460.0,0.00023287,4]
[365829114,1749942646692,-573.98,0.00023287,4]
[365829115,1749942646701,-460.0,0.00023287,4]
[365829116,1749942646711,-460.0,0.00023287,4]
[365829117,1749942646720,-460.0,0.00023287,4]
[365829118,1749942646729,-300.0,0.00023287,4]
[365829119,1749942646739,-460.0,0.00023287,4]
[365829120,1749942646749,-460.0,0.00023287,4]
[365829121,1749942646758,-1136.8,0.00023287,4]
[365829122,1749942646768,-599.81262175,0.00023287,4]
[365829123,1749942646777,-678.97,0.00023287,4]
[365829124,1749942646787,-475.35,0.00023287,4]
[365829125,1749942646796,-460.0,0.00023287,4]
[365829126,1749942646806,-547.98,0.00023287,4]
[365829127,1749942646815,-460.0,0.00023287,4]
[365829128,1749942646825,-460.0,0.00023287,4]
[365829129,1749942646834,-1454.97,0.00023287,4]
[365829130,1749942646845,-1630.71,0.00023287,4]
[365829131,1749942646855,-536.87,0.00023287,4]
[365829132,1749942646864,-639.76,0.00023287,4]
[365829133,1749942646874,-4036.84,0.00023287,4]
[365829134,1749942646883,-580.06,0.00023287,4]
[365829135,1749942646892,-460.0,0.00023287,4]
[365829136,1749942646901,-460.0,0.00023287,4]
[365829137,1749942646910,-1703.45,0.00023287,4]
[365829138,1749942646919,-670.68,0.00023287,4]
[365829139,1749942646928,-536.34,0.00023287,4]
[365829140,1749942646937,-554.82,0.00023287,4]
[365829141,1749942646947,-619.93,0.00023287,4]
[365829142,1749942646955,-710.88,0.00023287,4]
[365829143,1749942646964,-921.63,0.00023287,4]
[365829144,1749942646973,-1084.94,0.00023287,4]
[365829145,1749942646982,-460.0,0.00023287,4]
[365829146,1749942646992,-403.67216078,0.00023287,4]
[365829147,1749942647002,-512.06,0.00023287,4]
[365829148,1749942647011,-460.0,0.00023287,4]
[365829149,1749942647020,-1131.02,0.00023287,4]
[365829150,1749942647030,-711.64,0.00023287,4]
[365829151,1749942647039,-460.0,0.00023287,4]
[365829152,1749942647048,-1108.04,0.00023287,4]
[365829153,1749942647058,-460.0,0.00023287,4]
[365829154,1749942647067,-460.0,0.00023287,4]
[365829155,1749942647076,-1002.91,0.00023287,4]
[365829156,1749942647085,-460.0,0.00023287,4]
[365829157,1749942647096,-857.45,0.00023287,4]
[365829158,1749942647105,-716.31,0.00023287,4]
[365829159,1749942647114,-3300.29,0.00023287,4]
[365829160,1749942647123,-500.0,0.00023287,4]
[365829161,1749942647132,-2387.16,0.00023287,4]
[365829162,1749942647141,-3336.2,0.00023287,4]
[365829163,1749942647150,-330.0,0.00023287,4]
[365829164,1749942647160,-236.87709716,0.00023287,4]
[365829165,1749942647169,-1414.65,0.00023287,4]
[365829166,1749942647178,-460.0,0.00023287,4]
[365829167,1749942647188,-568.91,0.00023287,4]
[365829168,1749942647198,-460.0,0.00023287,4]
[365829169,1749942647207,-3965.51,0.00023287,4]
[365829170,1749942647218,-4101.37,0.00023287,4]
[365829171,1749942647228,-203.93835613,0.00023287,4]
[365829172,1749942647238,-4842.36,0.00023287,4]
[365829173,1749942647247,-910.23,0.00023287,4]
[365829174,1749942647257,-517.58,0.00023287,2]
[365829175,1749942647266,-1001.53,0.00023287,4]
[365829176,1749942647275,-230.36,0.00023287,4]
[365829177,1749942647284,-1022.41,0.00023287,4]
[365829178,1749942647294,-601.64,0.00023287,4]
[365829179,1749942647303,-460.0,0.00023287,4]
[365829180,1749942647312,-460.0,0.00023287,4]
[365829181,1749942647321,-1836.93,0.00023287,4]
[365829182,1749942647331,-539.89,0.00023287,4]
[365829183,1749942647340,-499.96,0.00023287,4]
[365829184,1749942647350,-460.0,0.00023287,4]
[365829185,1749942647359,-1522.71,0.00023287,4]
[365829186,1749942647369,-460.0,0.00023287,4]
[365829187,1749942647379,-672.89,0.00023287,4]
[365829188,1749942647389,-3168.7,0.00023287,4]
[365829189,1749942647398,-1355.96,0.00023287,4]
[365829190,1749942647407,-179.56,0.00023287,4]
[365829191,1749942647416,-460.0,0.00023287,4]
[365829192,1749942647427,-500.0,0.0002334,2]
[365829193,1749942647436,-306.0,0.00023342,2]
[365829194,1749942647445,-158.8399287,0.00023342,2]
[365829195,1749942647455,-500.0,0.00023346,2]